fUST/lending_fUST_20241210
["ID","MTS","AMOUNT","RATE_DAILY","PERIOD"]
[344736276,1733760654010,-180.84125526,0.00029863,7]
[344736277,1733760654025,-500.0,0.00029863,7]
[344736278,1733760654034,-515.21674017,0.00029863,7]
[344736279,1733760654044,-500.0,0.00029863,7]
[344736280,1733760654053,-500.0,0.00029863,7]
[344736281,1733760654062,-500.0,0.00029863,7]
[344736282,1733760654074,-500.0,0.00029863,7]
[344736283,1733760654085,-502.15080869,0.00029863,7]
[344736284,1733760654094,-500.0,0.00029863,7]
[344736285,1733760654104,-500.0,0.00029863,7]
[344736286,1733760654113,-500.0,0.00029863,7]
[344736287,1733760654123,-520.30686955,0.00029863,7]
[344736288,1733760654133,-500.0,0.00029863,7]
[344736289,1733760654142,-500.0,0.00029863,7]
[344736290,1733760654152,-500.0,0.00029863,7]
[344736291,1733760654162,-500.0,0.00029863,7]
[344736292,1733760654171,-500.0,0.00029863,7]
[344736293,1733760654181,-500.0,0.00029863,7]
[344736294,1733760654191,-500.0,0.00029863,7]
[344736295,1733760654200,-500.0,0.00029863,7]
[344736296,1733760654210,-500.0,0.00029863,7]
[344736297,1733760654219,-500.0,0.00029863,7]
[344736298,1733760654229,-500.0,0.00029863,7]
[344736299,1733760654239,-517.82,0.00029863,7]
[344736300,1733760654248,-151.0,0.00029863,7]
[344736301,1733760654258,-151.0,0.00029863,7]
[344736302,1733760654268,-151.0,0.00029863,7]
[344736303,1733760654277,-151.0,0.00029863,7]
[344736304,1733760654287,-500.0,0.00029863,7]
[344736305,1733760654297,-500.0,0.00029863,7]
[344736306,1733760654307,-500.0,0.00029863,7]
[344736307,1733760654316,-500.0,0.00029863,7]
[344736308,1733760654332,-500.0,0.00029863,7]
[344736309,1733760654341,-500.0,0.00029863,7]
[344736310,1733760654351,-500.0,0.00029863,7]
[344736311,1733760654360,-500.0,0.00029863,7]
[344736312,1733760654371,-500.0,0.00029863,7]
[344736313,1733760654380,-500.0,0.00029863,7]
[344736314,1733760654389,-500.0,0.00029863,7]
[344736315,1733760654399,-500.0,0.00029863,7]
[344736316,1733760654409,-252.62986159,0.00029863,7]
[344736317,1733760654418,-500.0,0.00029863,7]
[344736318,1733760654428,-500.0,0.00029863,7]
[344736319,1733760654437,-500.0,0.00029863,7]
[344736320,1733760654446,-500.0,0.00029863,7]
[344736321,1733760654455,-537.98446996,0.00029863,7]
[344736322,1733760654465,-500.0,0.00029863,7]
[344736323,1733760654474,-513.50943986,0.00029863,7]
[344736324,1733760654485,-500.0,0.00029863,7]
[344736325,1733760654495,-500.0,0.00029863,7]
[344736326,1733760654504,-500.0,0.00029863,7]
[344736327,1733760654513,-500.0,0.00029863,7]
[344736328,1733760654523,-500.0,0.00029863,7]
[344736329,1733760654534,-500.0,0.00029863,7]
[344736330,1733760654543,-500.0,0.00029863,7]
[344736331,1733760654553,-509.8820129,0.00029863,7]
[344736332,1733760654563,-500.0,0.00029863,7]
[344736333,1733760654576,-500.0,0.00029863,7]
[344736334,1733760654586,-500.0,0.00029863,7]
[344736335,1733760654595,-500.0,0.00029863,7]
[344736336,1733760654604,-500.0,0.00029863,7]
[344736337,1733760654613,-500.0,0.00029863,7]
[344736338,1733760654623,-500.0,0.00029863,7]
[344736339,1733760654632,-500.0,0.00029863,7]
[344736340,1733760654642,-500.0,0.00029863,7]
[344736341,1733760654652,-500.0,0.00029863,7]
[344736342,1733760654662,-500.0,0.00029863,7]
[344736343,1733760654671,-500.0,0.00029863,7]
[344736344,1733760654681,-500.0,0.00029863,7]
[344736345,1733760654690,-500.0,0.00029863,7]
[344736346,1733760654700,-500.0,0.00029863,7]
[344736347,1733760654709,-500.0,0.00029863,7]
[344736348,1733760654719,-500.0,0.00029863,7]
[344736349,1733760654728,-500.0,0.00029863,7]
[344736350,1733760654738,-500.0,0.00029863,7]
[344736351,1733760654747,-500.0,0.00029863,7]
[344736352,1733760654757,-500.0,0.00029863,7]
[344736353,1733760654766,-500.0,0.00029863,7]
[344736354,1733760654776,-500.0,0.00029863,7]
[344736355,1733760654788,-500.0,0.00029863,7]
[344736356,1733760654798,-500.0,0.00029863,7]
[344736357,1733760654808,-388.12824966,0.00029863,7]
[344736358,1733760654818,-500.0,0.00029863,7]
[344736359,1733760654838,-513.97949379,0.00029863,7]
[344736360,1733760654847,-500.0,0.00029863,7]
[344736361,1733760654857,-500.0,0.00029863,7]
[344736362,1733760654867,-500.0,0.00029863,7]
[344736363,1733760654878,-500.0,0.00029863,7]
[344736364,1733760654887,-500.0,0.00029863,7]
[344736365,1733760654898,-151.323299,0.00029863,7]
[344736366,1733760655205,-152.0,0.000288,2]
[344736367,1733760655215,-192.0,0.00029448,2]
[344736368,1733760655225,-6875.74304159,0.00029525,2]
[344736370,1733760838472,5000.0,0.00025,11]
[344736371,1733760854425,530.29318871,0.00025,11]
[344736373,1733760914361,34504.17479433,0.00029967,30]
[344736375,1733760969163,207.616346,0.00013973,2]
[344736423,1733761412658,17584.40216416,0.0001,2]
[344736424,1733761412684,20378.66677054,0.0001,2]
[344736427,1733761575148,3000.0,0.00029966,33]
[344736429,1733761603127,5000.0,0.00025,11]
[344736430,1733761619203,5000.0,0.00025,11]
[344736432,1733761635027,5000.0,0.00025,11]
[344736433,1733761651099,5000.0,0.00025,11]
[344736434,1733761667480,1487.86095748,0.00025,11]
[344736488,1733761831848,-1052.38034921,0.0001999,2]
[344736527,1733761837824,-2015.73607736,0.0001999,2]
[344736529,1733761837834,-3179.6773411,0.00020377,2]
[344736531,1733761837843,-207.616346,0.00020447,2]
[344736533,1733761837853,-2756.16157315,0.00023,2]
[344736535,1733761837863,-300.0,0.00024498,2]
[344736537,1733761837873,-300.0,0.00024498,2]
[344736539,1733761837882,-888.10743172,0.000245,2]
[344736541,1733761837892,-3124.25695841,0.00024865,2]
[344736543,1733761837901,-9960.58690002,0.00025,7]
[344736545,1733761837911,-2267.85737224,0.00026,2]
[344736558,1733761838076,-3677.32391951,0.00026,2]
[344736559,1733761838085,-420.0,0.00026553,2]
[344736560,1733761838095,-528.98336363,0.00026821,2]
[344736561,1733761838105,-207.616346,0.00026921,2]
[344736563,1733761838115,-420.0,0.00026948,2]
[344736564,1733761838124,-528.98336358,0.00027256,2]
[344736574,1733761838263,-200.0,0.00027501,15]
[344736576,1733761838283,-3931.66657049,0.00027522,2]
[344736577,1733761838297,-1195.34688646,0.00027522,2]
[344736597,1733761839979,-325.17325056,0.00027522,2]
[344736605,1733761842958,-4547.81329249,0.00027522,2]
[344736606,1733761842968,-528.98336358,0.0002769,2]
[344736607,1733761842978,-40.55681906,0.0002798,2]
[344736608,1733761843017,-239.44318094,0.0002798,2]
[344736609,1733761843026,-528.98336358,0.00028125,2]
[344736610,1733761843037,-318.586,0.0002837,2]
[344736612,1733761843046,-528.98336358,0.0002856,2]
[344736614,1733761843055,-155.00000001,0.00028752,2]
[344736615,1733761843065,-587.0,0.00028781,2]
[344736617,1733761843075,-2094.75409189,0.00028799,2]
[344736671,1733761845900,-7905.24590811,0.00028799,2]
[344736672,1733761845909,-528.98336358,0.00028995,2]
[344736673,1733761845919,-4036.0,0.00029,5]
[344736674,1733761845929,-3505.79174883,0.00029,2]
[344736675,1733761845939,-280.0,0.00029015,2]
[344736676,1733761845949,-153.0,0.00029322,2]
[344736677,1733761845960,-153.0,0.00029322,2]
[344736678,1733761845970,-153.0,0.00029323,2]
[344736679,1733761845979,-153.0,0.00029324,2]
[344736680,1733761845989,-153.0,0.00029325,2]
[344736681,1733761845998,-153.0,0.00029325,2]
[344736682,1733761846008,-153.0,0.00029327,2]
[344736683,1733761846018,-153.0,0.00029327,2]
[344736684,1733761846027,-528.98336358,0.00029429,2]
[344736685,1733761846037,-29763.95024898,0.00029499,2]
[344736686,1733761846046,-151.0,0.000295,2]
[344736687,1733761846056,-587.0,0.00029643,2]
[344736688,1733761846066,-500.0,0.00029673,5]
[344736689,1733761846075,-160.83421908,0.00029699,2]
[344736690,1733761846084,-168.18136874,0.00029699,2]
[344736691,1733761846094,-500.0,0.00029699,2]
[344736692,1733761846103,-191.48615738,0.00029699,2]
[344736693,1733761846113,-483.02809785,0.00029699,2]
[344736694,1733761846122,-500.0,0.00029699,2]
[344736695,1733761846132,-342.99477986,0.00029699,2]
[344736696,1733761846142,-500.0,0.00029699,2]
[344736697,1733761846152,-289.75322191,0.00029699,2]
[344736698,1733761846161,-316.01692609,0.00029699,2]
[344736699,1733761846172,-11304.38632406,0.000297,2]
[344736700,1733761846186,-3854.75650999,0.000297,2]
[344736701,1733761846198,-19611.4208,0.000297,2]
[344736702,1733761846213,-6861.03263356,0.000297,2]
[344736703,1733761846225,-25548.57780238,0.000297,2]
[344736704,1733761846236,-12595.16233296,0.000297,2]
[344736705,1733761897889,195.473894,0.00013973,2]
[344736711,1733762906153,219.0452,0.00013973,2]
[344736776,1733763035137,-219.0452,0.00020447,2]
[344736777,1733763035147,-150.0,0.00026076,2]
[344736778,1733763035156,-113.29655459,0.00026921,2]
[344736819,1733763038081,-105.74864541,0.00026921,2]
[344736821,1733763038091,-3200.0,0.00027389,2]
[344736823,1733763038101,-168.0,0.00027452,2]
[344736825,1733763038110,-314.358,0.0002837,2]
[344736827,1733763038120,-168.0,0.00028468,2]
[344736829,1733763038129,-283.71645251,0.00028999,7]
[344736831,1733763038141,-298.28354749,0.00028999,7]
[344736833,1733763038150,-302.69733596,0.00029,2]
[344736835,1733763038160,-219.2305595,0.00029151,30]
[344736837,1733763038170,-48.67827916,0.0002929,2]
[344737043,1733763040333,-254.0190568,0.0002929,2]
[344737045,1733763040344,-153.0,0.00029292,2]
[344737047,1733763040354,-168.0,0.00029483,2]
[344737050,1733763040365,-302.69733596,0.0002958,2]
[344737052,1733763040375,-1000.0,0.00029662,2]
[344737054,1733763040384,-300.0,0.00029698,2]
[344737055,1733763040393,-21503.68665224,0.000297,2]
[344737061,1733763040436,-4037.93760043,0.000297,2]
[344737637,1733763046098,-1961.62,0.000297,2]
[344737639,1733763046110,-309.3985088,0.000297,2]
[344737641,1733763046122,-11632.60866369,0.000297,2]
[344747005,1733763873856,200.80892,0.00013973,2]
[344747007,1733763947962,883.4,0.00025,90]
[344747008,1733764031583,1923.08729107,0.00021,11]
[344747009,1733764052148,-200.80892,0.00020447,2]
[344747010,1733764052170,-3000.0,0.00025,2]
[344747011,1733764052191,-3000.0,0.0002501,2]
[344747012,1733764052211,-300.0,0.00025019,2]
[344747013,1733764052232,-300.0,0.00025019,2]
[344747014,1733764052252,-5409.74677,0.0002502,2]
[344747015,1733764052272,-200.80892,0.00026921,2]
[344747016,1733764052292,-420.0,0.00027103,2]
[344747017,1733764052313,-164.139204,0.0002738,2]
[344747018,1733764052333,-374.0,0.00027521,2]
[344747019,1733764052355,-6654.5301043,0.00027645,2]
[344747020,1733764052383,-301.212,0.0002837,2]
[344747021,1733764052409,-155.0,0.00028681,2]
[344747022,1733764052436,-164.139204,0.0002873,2]
[344747023,1733764052461,-153.0,0.00029259,2]
[344747024,1733764052486,-153.0,0.00029259,2]
[344747025,1733764052511,-587.0,0.00029361,2]
[344747026,1733764052537,-151.0,0.000295,14]
[344747027,1733764052562,-211.72695186,0.00029673,5]
[344747028,1733764052588,-500.0,0.00029673,5]
[344747029,1733764052614,-294.90842936,0.00029699,2]
[344747030,1733764052639,-500.0,0.00029699,2]
[344747031,1733764052663,-342.99477986,0.00029699,2]
[344747032,1733764052690,-500.0,0.00029699,2]
[344747033,1733764052717,-289.75322191,0.00029699,2]
[344747034,1733764052743,-316.01692609,0.00029699,2]
[344747035,1733764052769,-557.75,0.00029699,7]
[344747036,1733764052793,-175.22528087,0.00029699,23]
[344747037,1733764052819,-22458.59467797,0.000297,2]
[344747136,1733764232371,-153.0,0.00029254,2]
[344747138,1733764232382,-153.0,0.00029254,2]
[344747140,1733764232391,-153.0,0.00029255,2]
[344747142,1733764232400,-153.0,0.00029256,2]
[344747144,1733764232409,-153.0,0.00029257,2]
[344747146,1733764232419,-153.0,0.00029257,2]
[344747149,1733764232428,-302.69733596,0.00029551,2]
[344747151,1733764232437,-8567.40184775,0.0002968,2]
[344747153,1733764232449,-660.5010373,0.0002968,2]
[344747394,1733764243372,-8113.0,0.00029,60]
[344747395,1733764243382,-19073.8635705,0.0002968,2]
[344747420,1733764246715,-20446.35020405,0.0002968,2]
[344749196,1733764366779,2000.8,0.00029966,30]
[344749202,1733764788539,210.967059,0.00013973,2]
[344749210,1733765249098,-210.967059,0.00020447,2]
[344749211,1733765249128,-3896.55,0.00025205,5]
[344749212,1733765249156,-164.139204,0.00026399,2]
[344749213,1733765249180,-300.0,0.00026545,2]
[344749214,1733765249204,-300.0,0.00026545,2]
[344749215,1733765249228,-150.0,0.00026546,2]
[344749216,1733765249252,-532.0,0.00026546,2]
[344749217,1733765249275,-2169.0,0.00026546,2]
[344749218,1733765249304,-2373.0,0.00026546,2]
[344749219,1733765249327,-191.966,0.00026546,2]
[344749220,1733765249351,-210.967059,0.00026921,2]
[344749221,1733765249375,-17739.3699324,0.00027043,2]
[344749222,1733765249399,-298.512,0.0002822,2]
[344749223,1733765249423,-420.0,0.00028712,2]
[344749224,1733765249447,-153.0,0.00029151,30]
[344749225,1733765249470,-306.0,0.00029151,30]
[344749226,1733765249493,-213.3539429,0.00029151,30]
[344749227,1733765249517,-5000.0,0.00029177,7]
[344749228,1733765249539,-4180.45944031,0.00029598,2]
[344749229,1733765249562,-4180.45944028,0.00029637,2]
[344749230,1733765249585,-4180.45944028,0.00029676,2]
[344749231,1733765249607,-546.96,0.00029698,7]
[344749232,1733765249634,-131087.46005826,0.000297,2]
[344749233,1733765249662,-232.54357999,0.000297,2]
[344749234,1733765249685,-55016.00083745,0.000297,2]
[344749238,1733765324300,15153.09094815,0.00015,20]
[344749241,1733765327863,1000.0,0.0001,2]
[344749296,1733765432460,-300.0,0.00019989,2]
[344749297,1733765432470,-79.99308121,0.0001999,2]
[344749298,1733765432482,-250.14023666,0.0001999,2]
[344749299,1733765432524,-1734.86816172,0.0001999,2]
[344749321,1733765438443,-1418.44760355,0.0001999,2]
[344749322,1733765438456,-3010.7417984,0.0001999,2]
[344749323,1733765439017,-3120.07292121,0.0001999,2]
[344749324,1733765439030,-1452.13103342,0.0001999,2]
[344749325,1733765439040,-352.41096861,0.0002,2]
[344749326,1733765439050,-307.0,0.00021766,2]
[344749327,1733765439063,-1703.76343381,0.000245,2]
[344749328,1733765439072,-16183.3144573,0.00025,7]
[344749358,1733765446761,-4856.2945766,0.00025,7]
[344749359,1733765446770,-22129.02661068,0.00025,7]
[344749360,1733765446781,-7836.45656456,0.00025,7]
[344749361,1733765446792,-499.64825169,0.00026,30]
[344749362,1733765446804,-7900.87350968,0.00026,30]
[344749363,1733765446813,-1877.92649032,0.00029,2]
[344749365,1733765446830,-981.85,0.00029,2]
[344749366,1733765446842,-646.01525851,0.00029,2]
[344749367,1733765446851,-153.0,0.00029151,30]
[344749368,1733765446860,-302.72757545,0.00029551,2]
[344749369,1733765446870,-18889.257166,0.000297,2]
[344749459,1733765902169,213.760953,0.00013973,2]
[344749494,1733766441122,-213.760953,0.00020447,2]
[344749495,1733766441143,-228.0,0.00022,2]
[344749496,1733766441163,-228.0,0.00022192,2]
[344749497,1733766441184,-228.0,0.00023014,2]
[344749498,1733766441206,-235.0,0.00024164,2]
[344749499,1733766441227,-173.0,0.00025,2]
[344749500,1733766441248,-228.0,0.00025775,2]
[344749501,1733766441270,-164.139204,0.00026674,2]
[344749502,1733766441291,-213.760953,0.00026921,2]
[344749503,1733766441312,-150.0,0.00027016,2]
[344749504,1733766441334,-532.0,0.00027016,2]
[344749505,1733766441356,-409.567,0.00027016,2]
[344749506,1733766441376,-151.0,0.00027226,6]
[344749507,1733766441397,-228.0,0.00027386,2]
[344749508,1733766441418,-524.17,0.00027397,7]
[344749509,1733766441441,-228.0,0.00027616,2]
[344749510,1733766441462,-300.0,0.00027844,2]
[344749511,1733766441484,-300.0,0.00027845,2]
[344749512,1733766441505,-1866.78284946,0.00027846,11]
[344749531,1733766632680,-2351.35491148,0.00027846,11]
[344749535,1733766632705,-1514.06704627,0.00027846,11]
[344749537,1733766632716,-610.97286328,0.00027846,11]
[344749546,1733766632808,-4936.29295791,0.00027846,11]
[344749549,1733766632818,-151.0,0.00027964,6]
[344749551,1733766632827,-295.513,0.0002822,2]
[344749552,1733766632838,-151.0,0.00028702,7]
[344749553,1733766632847,-524.17,0.00028767,9]
[344749554,1733766632972,-150.0,0.000288,2]
[344749555,1733766632982,-153.0,0.00028978,30]
[344749556,1733766632991,-228.0,0.00028997,2]
[344749557,1733766633002,-3165.45460171,0.00029,5]
[344749582,1733766640686,-870.54539829,0.00029,5]
[344749583,1733766640696,-236.42420385,0.00029,2]
[344749584,1733766640709,-66.27313211,0.00029,2]
[344749585,1733766640719,-302.69733596,0.0002929,2]
[344749586,1733766640728,-151.0,0.0002944,7]
[344749587,1733766640737,-716.05953193,0.00029573,2]
[344749605,1733766643805,-1896.72761828,0.00029573,2]
[344749606,1733766643815,-302.69733596,0.0002958,2]
[344749607,1733766643825,-178.65734057,0.000296,2]
[344749608,1733766643837,-1000.0,0.00029612,2]
[344749610,1733766643847,-500.90095519,0.00029617,2]
[344749616,1733766643928,-2111.88619498,0.00029617,2]
[344749617,1733766643938,-288.11380502,0.00029643,2]
[344749618,1733766643949,-711.88619498,0.00029643,2]
[344749619,1733766643958,-534.02237289,0.00029655,2]
[344749624,1733766646589,-465.97762711,0.00029655,2]
[344749625,1733766646599,-2612.78715017,0.00029662,2]
[344749626,1733766646609,-26262.75625205,0.00029665,2]
[344749627,1733766646620,-500.0,0.00029673,5]
[344749628,1733766646630,-1000.0,0.00029695,2]
[344749629,1733766646640,-500.0,0.00029699,2]
[344749630,1733766646649,-500.0,0.00029699,2]
[344749631,1733766646659,-399.68544741,0.00029699,2]
[344749632,1733766646669,-2482.52,0.00029699,5]
[344749633,1733766646678,-195.9311627,0.000297,2]
[344749634,1733766646688,-127477.21616249,0.000297,2]
[344749635,1733766646697,-184426.38254923,0.000297,2]
[344749636,1733766646709,-25304.10087743,0.000297,2]
[344749637,1733766646718,-83.2888467,0.000297,2]
[344749664,1733767152120,202.003917,0.00013973,2]
[344749719,1733767545371,-202.003917,0.00020447,2]
[344749720,1733767545391,-3000.0,0.00025,2]
[344749721,1733767545411,-1729.90198245,0.00025,2]
[344749722,1733767545432,-300.0,0.00025009,2]
[344749723,1733767545452,-300.0,0.00025009,2]
[344749724,1733767545472,-3000.0,0.0002501,2]
[344749725,1733767545492,-1543.6447729,0.0002502,2]
[344749726,1733767626085,-1456.3552271,0.0002502,2]
[344749727,1733767626107,-3000.0,0.0002503,2]
[344749728,1733767626134,-3000.0,0.0002504,2]
[344749729,1733767626156,-300.0,0.00025047,2]
[344749730,1733767626180,-35582.00179219,0.00025047,2]
[344749731,1733767644793,-115668.670167,0.00025047,2]
[344749734,1733767763095,-2216.47720452,0.00024948,2]
[344749735,1733767763116,-160.0,0.00025,2]
[344749736,1733767763137,-300.0,0.00025045,2]
[344749737,1733767763160,-300.0,0.00025045,2]
[344749738,1733767763181,-49519.0,0.00025045,2]
[344749739,1733767763203,-3000.0,0.0002505,2]
[344749740,1733767763225,-3000.0,0.0002506,2]
[344749741,1733767763248,-357.85394827,0.0002507,2]
[344749784,1733767832794,-2642.14605173,0.0002507,2]
[344749786,1733767832804,-3000.0,0.0002508,2]
[344749788,1733767832813,-2477.94971295,0.0002509,2]
[344749829,1733767838599,-522.05028705,0.0002509,2]
[344749831,1733767838608,-300.0,0.00025099,2]
[344749833,1733767838616,-300.0,0.00025099,2]
[344749835,1733767838626,-3000.0,0.000251,2]
[344749837,1733767838635,-3000.0,0.0002511,2]
[344749839,1733767838645,-3000.0,0.0002512,2]
[344749841,1733767838654,-3000.0,0.0002513,2]
[344749843,1733767838664,-587.55363595,0.0002514,2]
[344749845,1733767838676,-2412.44636405,0.0002514,2]
[344749847,1733767838686,-5819.131885,0.0002515,2]
[344749849,1733767838695,-2216.4772045,0.00025659,2]
[344749851,1733767838704,-160.0,0.0002589,2]
[344749853,1733767838714,-2216.4772045,0.00026369,2]
[344749854,1733767838723,-202.003917,0.00026921,2]
[344749856,1733767838732,-55.99836183,0.00027016,2]
[344749858,1733767838750,-476.00163817,0.00027016,2]
[344749860,1733767838760,-1419.86281104,0.00027016,2]
[344749861,1733767838771,-749.13718896,0.00027016,2]
[344749862,1733767838780,-2373.0,0.00027016,2]
[344749863,1733767838789,-2216.4772045,0.0002708,2]
[344749864,1733767838799,-3132.643,0.00027173,2]
[344749865,1733767838808,-400.77080853,0.00027397,60]
[344749866,1733767838818,-2216.4772045,0.00027791,2]
[344749867,1733767838922,-292.342,0.0002822,2]
[344749868,1733767838960,-563.09,0.00028329,2]
[344749869,1733767838970,-2216.4772045,0.00028502,2]
[344749870,1733767838980,-150.0,0.000288,2]
[344749871,1733767838989,-155.00568499,0.00028807,2]
[344749872,1733767838999,-818.1738175,0.00029014,30]
[344749873,1733767839008,-2216.4772045,0.00029212,2]
[344749874,1733767839017,-1000.0,0.0002924,2]
[344749875,1733767839027,-1000.0,0.00029266,2]
[344749876,1733767839036,-1000.0,0.00029332,2]
[344749877,1733767839046,-1000.0,0.00029469,2]
[344749878,1733767839055,-1000.0,0.00029501,2]
[344749879,1733767839064,-1000.0,0.00029557,2]
[344749880,1733767839073,-467.55072198,0.000296,2]
[344749881,1733767839083,-202.0,0.000296,2]
[344749882,1733767839092,-1000.0,0.00029615,2]
[344749883,1733767839102,-467.55072198,0.00029632,2]
[344749884,1733767839111,-467.55072198,0.00029664,2]
[344749885,1733767839120,-216.43313492,0.00029673,5]
[344749886,1733767839129,-500.0,0.00029673,5]
[344749887,1733767839139,-500.0,0.00029694,7]
[344749888,1733767839149,-467.55072198,0.00029696,2]
[344749889,1733767839158,-160.83421908,0.00029699,2]
[344749890,1733767839168,-217.65693845,0.00029699,2]
[344749891,1733767839179,-191.48615738,0.00029699,2]
[344749892,1733767839189,-500.0,0.00029699,2]
[344749893,1733767839199,-500.0,0.00029699,2]
[344749894,1733767839208,-524.33538223,0.00029699,2]
[344749895,1733767839218,-152.35985691,0.00029699,2]
[344749896,1733767839227,-500.0,0.00029699,2]
[344749897,1733767839237,-500.0,0.00029699,2]
[344749898,1733767839246,-500.0,0.00029699,2]
[344749899,1733767839255,-500.0,0.00029699,2]
[344749900,1733767839264,-500.0,0.00029699,2]
[344749901,1733767839274,-500.0,0.00029699,2]
[344749902,1733767839283,-500.0,0.00029699,2]
[344749903,1733767839292,-500.0,0.00029699,2]
[344749904,1733767839301,-500.0,0.00029699,2]
[344749905,1733767839310,-515.05,0.00029699,2]
[344749906,1733767839320,-11221.09747736,0.000297,2]
[344749907,1733767839331,-220022.63273777,0.000297,120]
[344749908,1733767839343,-9340.00371142,0.000297,120]
[344749909,1733767839354,-10801.50918988,0.000297,120]
[344749929,1733767840647,-48812.16718002,0.000297,120]
[344749930,1733767840691,-73919.43293287,0.000297,120]
[344749931,1733767840713,-12852.074463,0.000297,120]
[344749942,1733767843800,-1119.50563026,0.000297,120]
[344749943,1733767843850,-4815.27195269,0.000297,120]
[344750212,1733767846838,-161.0,0.00025,2]
[344750214,1733767846848,-21650.21881,0.000297,120]
[344750230,1733767846990,-10712.68,0.000297,120]
[344758166,1733768228836,186.36519,0.00013973,2]
[344759637,1733768326743,-186.36519,0.00020447,2]
[344759657,1733768846097,-300.0,0.00023999,2]
[344759658,1733768846119,-300.0,0.00024899,2]
[344759659,1733768846141,-490.4640371,0.000249,2]
[344759660,1733768846162,-2926.17198556,0.000249,2]
[344759661,1733768846184,-499.890525,0.000249,2]
[344759662,1733768846207,-500.0,0.00024973,2]
[344759663,1733768846230,-342.99477986,0.00024999,2]
[344759664,1733768846252,-55.29392619,0.00024999,2]
[344759667,1733768973103,-300.0,0.00023999,2]
[344759668,1733768973126,-20754.9437289,0.00024,2]
[344759669,1733768973148,-112720.75543601,0.0002499,5]
[344759670,1733768973171,-444.70607381,0.00024999,2]
[344759671,1733768973193,-500.0,0.00024999,2]
[344759672,1733768973215,-289.75322191,0.00024999,2]
[344759673,1733768973237,-595.46692609,0.00024999,2]
[344759674,1733768973258,-500.0,0.00024999,2]
[344759675,1733768973280,-500.0,0.00024999,2]
[344759676,1733768973302,-500.0,0.00024999,2]
[344759677,1733768973324,-500.0,0.00024999,2]
[344759678,1733768973345,-500.0,0.00024999,2]
[344759679,1733768973367,-417.4777529,0.00024999,2]
[344759680,1733768973389,-500.0,0.00024999,2]
[344759681,1733768973410,-500.0,0.00024999,2]
[344759682,1733768973432,-345.87223378,0.00024999,2]
[344759683,1733768973455,-448.41225046,0.00024999,2]
[344759684,1733768973475,-500.0,0.00024999,2]
[344759685,1733768973497,-500.0,0.00024999,2]
[344759686,1733768973520,-500.0,0.00024999,2]
[344759687,1733768973545,-500.0,0.00024999,2]
[344759688,1733768973567,-500.0,0.00024999,2]
[344759689,1733768973589,-500.0,0.00024999,2]
[344759690,1733768973612,-500.0,0.00024999,2]
[344759691,1733768973634,-500.0,0.00024999,2]
[344759692,1733768973655,-500.0,0.00024999,2]
[344759693,1733768973678,-500.0,0.00024999,2]
[344759694,1733768973700,-500.0,0.00024999,2]
[344759695,1733768973721,-500.0,0.00024999,2]
[344759696,1733768973744,-408.38330059,0.00024999,2]
[344759697,1733768973766,-500.0,0.00024999,2]
[344759698,1733768973790,-500.0,0.00024999,2]
[344759699,1733768973810,-500.0,0.00024999,2]
[344759700,1733768973832,-500.0,0.00024999,2]
[344759701,1733768973852,-500.0,0.00024999,2]
[344759702,1733768973873,-500.0,0.00024999,2]
[344759703,1733768973893,-500.0,0.00024999,2]
[344759704,1733768973915,-576.80505259,0.00024999,2]